fUST/lending_fUST_20250731
["ID","MTS","AMOUNT","RATE_DAILY","PERIOD"]
[376369310,1753950861408,-443.53911048,0.00019178,2]
[376369311,1753950862487,1960.35934797,0.00019,2]
[376369312,1753950863689,-16.46088952,0.00019178,2]
[376369317,1753950885208,-443.53911048,0.00019178,2]
[376369318,1753950887921,-138.80088952,0.00019178,2]
[376369319,1753950887945,-321.19911048,0.00019178,2]
[376369320,1753950889620,-138.80088952,0.00019178,2]
[376369321,1753950889644,-85.84266471,0.00019178,2]
[376369323,1753950893805,-374.15733529,0.00019178,2]
[376369324,1753950900141,-213.61,0.00019178,2]
[376369326,1753950903810,-246.39,0.00019178,2]
[376369328,1753950930653,-460.0,0.00019178,2]
[376369330,1753950933300,-235.48106624,0.00019178,2]
[376369331,1753950933324,-228.62217661,0.00019178,2]
[376369362,1753951073415,316.83703985,0.00018603,2]
[376369363,1753951073827,158.41851993,0.00018603,2]
[376369364,1753951075757,2753.90929164,0.00019,2]
[376369365,1753951075779,285.73136039,0.00019,2]
[376369366,1753951080422,9714.26863961,0.0001843,2]
[376369367,1753951080448,10000.0,0.0001843,2]
[376369368,1753951080472,5185.73136039,0.0001843,2]
[376369377,1753951135155,-179.2586344,0.00019177,2]
[376369380,1753951156909,-1020.7413656,0.00019177,2]
[376369381,1753951156932,-460.0,0.00019178,2]
[376369382,1753951156957,-460.0,0.00019178,2]
[376369383,1753951156985,-460.0,0.00019178,2]
[376369384,1753951157009,-460.0,0.00019178,2]
[376369385,1753951157033,-5562.63458509,0.00019178,7]
[376369386,1753951157062,-460.0,0.00019178,2]
[376369387,1753951157085,-460.0,0.00019178,2]
[376369388,1753951157111,-460.0,0.00019178,2]
[376369389,1753951157137,-460.0,0.00019178,2]
[376369390,1753951157168,-460.0,0.00019178,2]
[376369391,1753951157192,-460.0,0.00019178,2]
[376369392,1753951157218,-460.0,0.00019178,2]
[376369393,1753951157246,-460.0,0.00019178,2]
[376369394,1753951157272,-460.0,0.00019178,2]
[376369395,1753951157293,-460.0,0.00019178,2]
[376369396,1753951157315,-460.0,0.00019178,2]
[376369397,1753951157339,-460.0,0.00019178,2]
[376369398,1753951157363,-460.0,0.00019178,2]
[376369399,1753951157389,-460.0,0.00019178,2]
[376369400,1753951157413,-460.0,0.00019178,2]
[376369401,1753951157435,-460.0,0.00019178,2]
[376369402,1753951157457,-460.0,0.00019178,2]
[376369403,1753951157481,-460.0,0.00019178,2]
[376369404,1753951157505,-410.79503723,0.00019178,2]
[376369405,1753951157526,-460.0,0.00019178,2]
[376369406,1753951157547,-462.70375859,0.00019178,2]
[376369407,1753951157570,-460.0,0.00019178,2]
[376369408,1753951157594,-460.0,0.00019178,2]
[376369409,1753951157617,-460.0,0.00019178,2]
[376369410,1753951157640,-8272.12525349,0.00019178,2]
[376369411,1753951159685,-460.0,0.00019178,2]
[376369412,1753951159710,-539.00345188,0.00019178,2]
[376369413,1753951161562,-161.733103,0.00019178,2]
[376369415,1753951165396,999.00345188,0.00019,2]
[376369416,1753951167114,-460.0,0.00019178,2]
[376369418,1753951170210,-611.0,0.00019178,2]
[376369419,1753951175756,-460.0,0.00019178,2]
[376369421,1753951180155,-160.0,0.00019178,2]
[376369422,1753951180744,1692.733103,0.00019,2]
[376369423,1753951183298,-300.0,0.00019178,2]
[376369424,1753951183320,-160.0,0.00019178,2]
[376369426,1753951187012,-354.03965153,0.00019178,2]
[376369427,1753951193773,-105.96034847,0.00019178,2]
[376369428,1753951193795,-194.03965153,0.00019178,2]
[376369429,1753951197057,974.03965153,0.00019,2]
[376369430,1753951198232,-360.64266322,0.00019178,2]
[376369431,1753951204166,-239.35733678,0.00019177,2]
[376369432,1753951209389,-60.64266322,0.00019177,2]
[376369433,1753951209411,-285.31768525,0.00019177,2]
[376369434,1753951213346,900.0,0.00019,2]
[376369435,1753951215929,-14.68231475,0.00019177,2]
[376369436,1753951215952,-151.20536415,0.00019177,2]
[376369439,1753951221758,-148.79463585,0.00019177,2]
[376369440,1753951221781,-12.93846715,0.00019177,2]
[376369443,1753951223600,-240.0,0.00019177,2]
[376369457,1753951346831,-222.99295668,0.00019033,2]
[376369458,1753951350121,-257.779812,0.00019033,2]
[376369459,1753951351650,-159.31301254,0.00019033,2]
[376369463,1753951375245,198.4382697,0.00018603,2]
[376369465,1753951424445,50.0541635,0.00019,2]
[376369466,1753951424600,223.44118565,0.00019,2]
[376369470,1753951616146,-188.96652356,0.00019016,2]
[376369619,1753951832947,413.61681923,0.000189,2]
[376369828,1753951838893,-55.70791924,0.00019016,2]
[376369829,1753951838903,-156.4720611,0.00019075,2]
[376369830,1753951838912,-199.36820486,0.00019078,2]
[376369831,1753951838923,-300.0,0.00019174,2]
[376369832,1753951838933,-1200.0,0.00019174,2]
[376369833,1753951838942,-1200.0,0.00019175,2]
[376369834,1753951838951,-300.0,0.00019175,2]
[376369835,1753951838960,-300.0,0.00019175,2]
[376369836,1753951838970,-300.0,0.00019175,2]
[376369837,1753951838978,-300.0,0.00019175,2]
[376369838,1753951838987,-102.33002131,0.00019178,2]
[376369839,1753951838996,-316.16200497,0.00019178,2]
[376369840,1753951839006,-460.0,0.00019178,2]
[376369841,1753951839015,-460.0,0.00019178,2]
[376369842,1753951839024,-460.0,0.00019178,2]
[376369843,1753951839033,-460.0,0.00019178,2]
[376369845,1753951839042,-460.0,0.00019178,2]
[376369846,1753951839051,-460.0,0.00019178,2]
[376369848,1753951839061,-460.0,0.00019178,2]
[376369850,1753951839070,-460.0,0.00019178,2]
[376369852,1753951839079,-460.0,0.00019178,2]
[376369854,1753951839088,-460.0,0.00019178,2]
[376369856,1753951839098,-465.86941834,0.00019178,2]
[376369858,1753951839107,-460.0,0.00019178,2]
[376369860,1753951839116,-321.15833953,0.00019178,2]
[376369862,1753951839126,-460.0,0.00019178,2]
[376369864,1753951839135,-460.0,0.00019178,2]
[376369866,1753951839143,-460.0,0.00019178,2]
[376369868,1753951839153,-460.0,0.00019178,2]
[376369870,1753951839162,-460.0,0.00019178,2]
[376369872,1753951839171,-460.0,0.00019178,2]
[376369874,1753951839180,-460.0,0.00019178,2]
[376369876,1753951839189,-460.0,0.00019178,2]
[376369878,1753951839199,-460.0,0.00019178,2]
[376369880,1753951839208,-600.0,0.00019178,2]
[376369882,1753951839217,-460.0,0.00019178,2]
[376369884,1753951839226,-460.0,0.00019178,2]
[376369886,1753951839235,-460.0,0.00019178,2]
[376369888,1753951839244,-460.0,0.00019178,2]
[376369890,1753951839253,-460.0,0.00019178,2]
[376369892,1753951839263,-484.93,0.00019178,2]
[376369894,1753951839272,-460.0,0.00019178,2]
[376369896,1753951839283,-460.0,0.00019178,2]
[376369898,1753951839292,-579.24082457,0.00019178,2]
[376369900,1753951839303,-460.0,0.00019178,2]
[376369902,1753951839314,-460.0,0.00019178,2]
[376369904,1753951839324,-460.0,0.00019178,2]
[376369906,1753951839333,-460.0,0.00019178,2]
[376369908,1753951839343,-460.0,0.00019178,2]
[376369910,1753951839353,-460.0,0.00019178,2]
[376369912,1753951839364,-460.0,0.00019178,2]
[376369914,1753951839373,-460.0,0.00019178,2]
[376369916,1753951839384,-460.0,0.00019178,2]
[376369918,1753951839394,-460.0,0.00019178,2]
[376369920,1753951839404,-460.0,0.00019178,2]
[376369922,1753951839413,-460.0,0.00019178,2]
[376369924,1753951839423,-460.0,0.00019178,2]
[376369926,1753951839432,-460.0,0.00019178,2]
[376369928,1753951839440,-578.34,0.00019178,2]
[376369930,1753951839450,-340.45414761,0.00019178,2]
[376369932,1753951839459,-460.0,0.00019178,2]
[376369934,1753951839470,-563.36,0.00019178,2]
[376369937,1753951839479,-460.0,0.00019178,2]
[376369939,1753951839488,-460.0,0.00019178,2]
[376369942,1753951839497,-460.0,0.00019178,2]
[376369945,1753951839507,-460.0,0.00019178,2]
[376369948,1753951839516,-460.0,0.00019178,2]
[376369950,1753951839525,-460.0,0.00019178,2]
[376369952,1753951839535,-166.17373451,0.00019178,2]
[376369954,1753951839544,-460.0,0.00019178,2]
[376369956,1753951839554,-460.0,0.00019178,2]
[376369958,1753951839563,-460.0,0.00019178,2]
[376369960,1753951839573,-460.0,0.00019178,2]
[376369962,1753951839582,-460.0,0.00019178,2]
[376369964,1753951839591,-460.0,0.00019178,2]
[376369966,1753951839600,-460.0,0.00019178,2]
[376369968,1753951839609,-460.0,0.00019178,2]
[376369970,1753951839618,-460.0,0.00019178,2]
[376369972,1753951839628,-460.0,0.00019178,2]
[376369974,1753951839637,-249.4282258,0.00019178,2]
[376369976,1753951839647,-12691.79562932,0.00019178,2]
[376369978,1753951839656,-460.0,0.00019448,2]
[376369980,1753951839666,-460.0,0.00019448,2]
[376369982,1753951839675,-592.19254262,0.00019448,2]
[376369984,1753951839685,-460.0,0.00019448,2]
[376369986,1753951839695,-460.0,0.00019448,2]
[376369988,1753951839704,-460.0,0.00019448,2]
[376369990,1753951839714,-460.0,0.00019448,2]
[376369992,1753951839725,-460.0,0.00019448,2]
[376369994,1753951839735,-208.51478887,0.00019448,2]
[376369996,1753951839744,-460.0,0.00019448,2]
[376369998,1753951839754,-460.0,0.00019448,2]
[376370000,1753951839763,-460.0,0.00019448,2]
[376370002,1753951839774,-460.0,0.00019448,2]
[376370004,1753951839784,-460.0,0.00019448,2]
[376370006,1753951839794,-464.74,0.00019448,2]
[376370008,1753951839804,-460.0,0.00019448,2]
[376370010,1753951839813,-460.0,0.00019448,2]
[376370012,1753951839822,-460.0,0.00019448,2]
[376370014,1753951839832,-460.0,0.00019448,2]
[376370016,1753951839841,-460.0,0.00019448,2]
[376370018,1753951839850,-460.0,0.00019448,2]
[376370020,1753951839860,-460.0,0.00019448,2]
[376370022,1753951839869,-460.0,0.00019448,2]
[376370024,1753951839878,-460.0,0.00019448,2]
[376370026,1753951839887,-460.0,0.00019448,2]
[376370028,1753951839896,-460.0,0.00019448,2]
[376370030,1753951839905,-460.0,0.00019448,2]
[376370032,1753951839914,-460.0,0.00019448,2]
[376370034,1753951839924,-460.0,0.00019448,2]
[376370036,1753951839933,-460.0,0.00019448,2]
[376370038,1753951839942,-460.0,0.00019448,2]
[376370039,1753951839951,-460.0,0.00019448,2]
[376370040,1753951839961,-460.0,0.00019448,2]
[376370041,1753951839972,-231.37782339,0.00019448,2]
[376370042,1753951839982,-460.0,0.00019448,2]
[376370043,1753951839992,-341.39,0.00019448,2]
[376370044,1753951840001,-233.69,0.00019448,2]
[376370045,1753951840011,-460.0,0.00019448,2]
[376370046,1753951840021,-460.0,0.00019448,2]
[376370047,1753951840031,-250.41826057,0.00019448,2]
[376370048,1753951840041,-323.89066846,0.00019448,2]
[376370049,1753951840050,-460.0,0.00019448,2]
[376370050,1753951840059,-460.0,0.00019448,2]
[376370052,1753951840068,-460.0,0.00019448,2]
[376370054,1753951840078,-460.0,0.00019448,2]
[376370056,1753951840087,-460.0,0.00019448,2]
[376370058,1753951840096,-460.0,0.00019451,2]
[376370060,1753951840106,-460.0,0.00019451,2]
[376370062,1753951840115,-460.0,0.00019451,2]
[376370064,1753951840124,-460.0,0.00019451,2]
[376370065,1753951840132,-460.0,0.00019451,2]
[376370067,1753951840142,-460.0,0.00019451,2]
[376370069,1753951840150,-460.0,0.00019451,2]
[376370071,1753951840160,-460.0,0.00019451,2]
[376370073,1753951840169,-460.0,0.00019451,2]
[376370075,1753951840178,-460.0,0.00019452,2]
[376370077,1753951840187,-460.0,0.00019452,2]
[376370079,1753951840196,-460.0,0.00019452,2]
[376370081,1753951840205,-460.0,0.00019452,2]
[376370083,1753951840214,-460.0,0.00019452,2]
[376370085,1753951840226,-460.0,0.00019452,2]
[376370087,1753951840235,-460.0,0.00019452,2]
[376370089,1753951840244,-460.0,0.00019452,2]
[376370091,1753951840253,-367.91612387,0.00019452,2]
[376370093,1753951840262,-460.0,0.00019452,2]
[376370095,1753951840271,-428.34801753,0.00019452,2]
[376370097,1753951840279,-236.14,0.00019452,2]
[376370099,1753951840288,-460.0,0.00019452,2]
[376370100,1753951840297,-561.48,0.00019452,2]
[376370102,1753951840308,-530.3,0.00019452,2]
[376370104,1753951840320,-460.0,0.00019452,2]
[376370107,1753951840329,-460.0,0.00019452,2]
[376370109,1753951840338,-460.0,0.00019452,2]
[376370111,1753951840347,-153.72,0.00019452,2]
[376370112,1753951840359,-460.0,0.00019452,2]
[376370113,1753951840369,-460.0,0.00019452,2]
[376370114,1753951840377,-460.0,0.00019452,2]
[376370115,1753951840387,-460.0,0.00019452,2]
[376370116,1753951840397,-460.0,0.00019452,2]
[376370117,1753951840406,-221.32230694,0.00019452,2]
[376370118,1753951840416,-460.0,0.00019452,2]
[376370119,1753951840424,-460.0,0.00019452,2]
[376370120,1753951840434,-460.0,0.00019452,2]
[376370121,1753951840443,-460.0,0.00019507,2]
[376370122,1753951840452,-460.0,0.00019509,2]
[376370123,1753951840461,-460.0,0.00019509,2]
[376370124,1753951840473,-460.0,0.00019509,2]
[376370125,1753951840482,-200.0,0.00019557,15]
[376370126,1753951840491,-200.0,0.00019557,15]
[376370127,1753951840500,-200.0,0.00019557,15]
[376370128,1753951840510,-200.0,0.00019557,15]
[376370129,1753951840519,-485.48,0.00019722,2]
[376370130,1753951840528,-460.0,0.00019722,2]
[376370131,1753951840538,-460.0,0.00019722,2]
[376370132,1753951840547,-460.0,0.00019722,2]
[376370133,1753951840556,-460.0,0.00019722,2]
[376370134,1753951840566,-460.0,0.00019722,2]
[376370135,1753951840575,-464.74,0.00019722,2]
[376370136,1753951840586,-460.0,0.00019722,2]
[376370137,1753951840595,-484.08,0.00019722,2]
[376370138,1753951840605,-203.05501029,0.00019722,2]
[376370139,1753951840614,-460.0,0.00019722,2]
[376370140,1753951840623,-460.0,0.00019722,2]
[376370141,1753951840633,-460.0,0.00019722,2]
[376370142,1753951840642,-460.0,0.00019722,2]
[376370143,1753951840653,-460.0,0.00019722,2]
[376370144,1753951840663,-460.0,0.00019722,2]
[376370145,1753951840672,-460.0,0.00019722,2]
[376370146,1753951840682,-460.0,0.00019722,2]
[376370147,1753951840691,-235.62,0.00019722,2]
[376370148,1753951840700,-460.0,0.00019722,2]
[376370149,1753951840709,-460.0,0.00019722,2]
[376370150,1753951840719,-460.0,0.00019722,2]
[376370151,1753951840729,-460.0,0.00019722,2]
[376370152,1753951840738,-460.0,0.00019722,2]
[376370153,1753951840747,-460.0,0.00019722,2]
[376370154,1753951840755,-460.0,0.00019725,2]
[376370155,1753951840764,-460.0,0.00019725,2]
[376370156,1753951840773,-460.0,0.00019725,2]
[376370157,1753951840782,-460.0,0.00019725,2]
[376370158,1753951840791,-460.0,0.00019725,2]
[376370159,1753951840800,-460.0,0.00019725,2]
[376370160,1753951840818,-460.0,0.00019725,2]
[376370161,1753951840829,-226.64,0.00019726,2]
[376370162,1753951840838,-460.0,0.00019726,2]
[376370163,1753951840847,-460.0,0.00019726,2]
[376370164,1753951840857,-460.0,0.00019726,2]
[376370165,1753951840866,-460.0,0.00019726,2]
[376370166,1753951840875,-460.0,0.00019726,2]
[376370167,1753951840884,-460.0,0.00019726,2]
[376370168,1753951840894,-460.0,0.00019726,2]
[376370169,1753951840903,-460.0,0.00019726,2]
[376370170,1753951840913,-226.18,0.00019726,2]
[376370171,1753951840922,-460.0,0.00019783,2]
[376370172,1753951840931,-460.0,0.00019783,2]
[376370173,1753951840941,-460.0,0.00019783,2]
[376370174,1753951840950,-1112.40803198,0.00019896,2]
[376370175,1753951840959,-2857.25880482,0.000199,2]
[376370176,1753951840968,-12642.0599901,0.0001996,2]
[376370177,1753951840980,-500.0,0.00019973,2]
[376370178,1753951840989,-500.0,0.00019973,2]
[376370179,1753951840998,-500.0,0.00019973,2]
[376370180,1753951841008,-612.52,0.0001998,3]
[376370181,1753951841017,-52087.75848589,0.0001999,2]
[376370182,1753951841027,-464.74,0.00019996,2]
[376370183,1753951841036,-460.0,0.00019996,2]
[376370184,1753951841045,-429.72,0.00019996,2]
[376370185,1753951841054,-460.0,0.00019996,2]
[376370186,1753951841064,-520.82,0.00019996,2]
[376370187,1753951841073,-460.0,0.00019996,2]
[376370188,1753951841083,-460.0,0.00019996,2]
[376370189,1753951841092,-460.0,0.00019996,2]
[376370190,1753951841102,-460.0,0.00019999,2]
[376370191,1753951841112,-460.0,0.00019999,2]
[376370192,1753951841121,-460.0,0.00019999,2]
[376370193,1753951841130,-460.0,0.00019999,2]
[376370194,1753951841139,-460.0,0.0002,2]
[376370195,1753951841149,-446.48,0.0002,2]
[376370196,1753951841158,-460.0,0.0002,2]
[376370197,1753951841168,-280.14,0.0002,2]
[376370198,1753951841177,-460.0,0.0002,2]
[376370199,1753951841187,-460.0,0.0002,2]
[376370200,1753951841196,-460.0,0.00020056,2]
[376370201,1753951841205,-1112.40803198,0.00020122,2]
[376370202,1753951841214,-199.36820482,0.00020123,2]
[376370203,1753951841225,-11422.41337859,0.00020129,2]
[376370204,1753951841234,-460.0,0.00020129,2]
[376370205,1753951841243,-460.0,0.00020129,2]
[376370206,1753951841252,-460.0,0.00020129,2]
[376370207,1753951841261,-507.41,0.00020129,2]
[376370208,1753951841270,-2857.25880471,0.00020141,2]
[376370209,1753951841280,-729.49,0.00020161,3]
[376370210,1753951841289,-500.0,0.00020224,2]
[376370211,1753951841298,-500.0,0.00020224,2]
[376370212,1753951841310,-500.0,0.00020224,2]
[376370213,1753951841319,-500.0,0.00020224,2]
[376370214,1753951841329,-500.0,0.00020224,2]
[376370215,1753951841338,-500.0,0.00020224,2]
[376370216,1753951841347,-500.0,0.00020224,2]
[376370217,1753951841356,-500.0,0.00020224,2]
[376370218,1753951841365,-500.0,0.00020224,2]
[376370219,1753951841374,-500.0,0.00020224,2]
[376370220,1753951841385,-500.0,0.00020224,2]
[376370221,1753951841395,-500.0,0.00020224,2]
[376370222,1753951841404,-500.0,0.00020224,2]
[376370223,1753951841414,-500.0,0.00020224,2]
[376370224,1753951841423,-357.6099415,0.00020224,2]
[376370225,1753951841432,-500.0,0.00020224,2]
[376370226,1753951841442,-500.0,0.00020224,2]
[376370227,1753951841455,-152.46686492,0.00020224,2]
[376370228,1753951841465,-500.0,0.00020224,2]
[376370229,1753951841476,-500.0,0.00020224,2]
[376370230,1753951841486,-500.0,0.00020224,2]
[376370231,1753951841495,-500.0,0.00020224,2]
[376370232,1753951841504,-500.0,0.00020224,2]
[376370233,1753951841514,-500.0,0.00020224,2]
[376370234,1753951841523,-500.0,0.00020224,2]
[376370235,1753951841532,-168.0252034,0.00020224,2]
[376370236,1753951841542,-606.01785622,0.00020224,2]
[376370237,1753951841551,-500.0,0.00020224,2]
[376370238,1753951841561,-500.0,0.00020224,2]
[376370239,1753951841570,-500.0,0.00020224,2]
[376370240,1753951841579,-500.0,0.00020224,2]
[376370241,1753951841588,-318.15683119,0.00020224,2]
[376370242,1753951841598,-242.22812421,0.00020224,2]
[376370243,1753951841608,-500.0,0.00020224,2]
[376370244,1753951841617,-500.0,0.00020224,2]
[376370245,1753951841627,-500.0,0.00020224,2]
[376370246,1753951841636,-500.0,0.00020224,2]
[376370247,1753951841646,-500.0,0.00020224,2]
[376370248,1753951841656,-533.90864987,0.00020224,2]
[376370249,1753951841665,-500.0,0.00020224,2]
[376370250,1753951841675,-500.0,0.00020224,2]
[376370251,1753951841684,-500.0,0.00020224,2]
[376370252,1753951841694,-500.0,0.00020224,2]
[376370253,1753951841703,-500.0,0.00020224,2]
[376370254,1753951841713,-500.0,0.00020224,2]
[376370255,1753951841724,-500.0,0.00020224,2]
[376370256,1753951841733,-500.0,0.00020224,2]
[376370257,1753951841742,-500.0,0.00020224,2]
[376370258,1753951841752,-500.0,0.00020224,2]
[376370259,1753951841762,-500.0,0.00020224,2]
[376370260,1753951841771,-500.0,0.00020224,2]
[376370261,1753951841781,-500.0,0.00020224,2]
[376370262,1753951841790,-500.0,0.00020224,2]
[376370263,1753951841800,-500.0,0.00020224,2]
[376370264,1753951841809,-500.0,0.00020224,2]
[376370265,1753951841820,-500.0,0.00020224,2]
[376370266,1753951841829,-500.0,0.00020224,2]
[376370267,1753951841839,-500.0,0.00020224,2]
[376370268,1753951841849,-500.0,0.00020224,2]
[376370269,1753951841859,-500.0,0.00020224,2]
[376370270,1753951841869,-500.0,0.00020224,2]
[376370271,1753951841879,-500.0,0.00020224,2]
[376370272,1753951841889,-500.0,0.00020224,2]
[376370273,1753951841899,-500.0,0.00020224,2]
[376370274,1753951841911,-500.0,0.00020224,2]
[376370275,1753951841921,-500.0,0.00020224,2]
[376370276,1753951841931,-500.0,0.00020224,2]
[376370277,1753951841940,-500.0,0.00020224,2]
[376370278,1753951841950,-500.0,0.00020224,2]
[376370279,1753951842111,-500.0,0.00020224,2]
[376370280,1753951842121,-500.0,0.00020224,2]
[376370281,1753951842130,-500.0,0.00020224,2]
[376370282,1753951842140,-500.0,0.00020224,2]
[376370283,1753951842149,-500.0,0.00020224,2]
[376370284,1753951842160,-500.0,0.00020224,2]
[376370285,1753951842169,-500.0,0.00020224,2]
[376370286,1753951842178,-500.0,0.00020224,2]
[376370287,1753951842187,-500.0,0.00020224,2]
[376370288,1753951842196,-500.0,0.00020224,2]
[376370289,1753951842205,-500.0,0.00020224,2]
[376370290,1753951842214,-500.0,0.00020224,2]
[376370291,1753951842225,-500.0,0.00020224,2]
[376370292,1753951842234,-500.0,0.00020224,2]
[376370293,1753951842246,-500.0,0.00020224,2]
[376370294,1753951842256,-500.0,0.00020224,2]
[376370295,1753951842264,-500.0,0.00020224,2]
[376370296,1753951842274,-500.0,0.00020224,2]
[376370297,1753951842283,-500.0,0.00020224,2]
[376370298,1753951842293,-500.0,0.00020224,2]
[376370299,1753951842303,-500.0,0.00020224,2]
[376370300,1753951842314,-500.0,0.00020224,2]
[376370301,1753951842324,-500.0,0.00020224,2]
[376370302,1753951842333,-489.57906515,0.00020224,2]
[376370303,1753951842342,-500.0,0.00020224,2]
[376370304,1753951842353,-500.0,0.00020224,2]
[376370305,1753951842362,-500.0,0.00020224,2]
[376370306,1753951842372,-500.0,0.00020224,2]
[376370307,1753951842381,-500.0,0.00020224,2]
[376370308,1753951842391,-500.0,0.00020224,2]
[376370309,1753951842400,-500.0,0.00020224,2]
[376370310,1753951842410,-500.0,0.00020224,2]
[376370311,1753951842419,-500.0,0.00020224,2]
[376370312,1753951842429,-500.0,0.00020224,2]
[376370313,1753951842438,-500.0,0.00020224,2]
[376370314,1753951842448,-500.0,0.00020224,2]
[376370315,1753951842457,-407.49698313,0.00020227,2]
[376370316,1753951842467,-1139.12082585,0.00020229,2]
[376370317,1753951842477,-1139.12082585,0.00020229,2]
[376370318,1753951842488,-1139.12082585,0.00020229,2]
[376370319,1753951842497,-1139.12082585,0.00020229,2]
[376370320,1753951842507,-1139.12082585,0.00020229,2]
[376370321,1753951842516,-1139.12082585,0.00020229,2]
[376370322,1753951842525,-1139.12082585,0.00020229,2]
[376370323,1753951842534,-1139.12082585,0.00020229,2]
[376370324,1753951842543,-1139.12082585,0.00020229,2]
[376370325,1753951842553,-1139.12082585,0.00020229,2]
[376370326,1753951842563,-1139.12082585,0.00020229,2]
[376370327,1753951842572,-1139.12082585,0.00020229,2]
[376370328,1753951842582,-1139.12082585,0.00020229,2]
[376370329,1753951842591,-1139.12082585,0.00020229,2]
[376370330,1753951842600,-1139.12082585,0.00020229,2]
[376370332,1753951842610,-1139.12082585,0.00020229,2]
[376370334,1753951842619,-1139.12082585,0.00020229,2]
[376370336,1753951842629,-1139.12082585,0.00020229,2]
[376370337,1753951842638,-1139.12082585,0.00020229,2]
[376370338,1753951842648,-1139.12082585,0.00020229,2]
[376370339,1753951842658,-2730.02095864,0.00020229,2]
[376370341,1753951842668,-2730.02095864,0.00020229,2]
[376370343,1753951842677,-2730.02095864,0.00020229,2]
[376370345,1753951842687,-2730.02095864,0.00020229,2]
[376370347,1753951842695,-2730.02095864,0.00020229,2]
[376370348,1753951842704,-2730.02095864,0.00020229,2]
[376370350,1753951842714,-2730.02095864,0.00020229,2]
[376370352,1753951842725,-359661.27523802,0.0002023,2]
[376370355,1753951842736,-464.74,0.0002027,2]
[376370357,1753951842746,-460.0,0.0002027,2]
[376370359,1753951842755,-460.0,0.0002027,2]
[376370361,1753951842765,-460.0,0.0002027,2]
[376370362,1753951842775,-460.0,0.0002027,2]
[376370365,1753951842785,-500.0,0.00020273,2]
[376370366,1753951842794,-500.0,0.00020273,2]
[376370368,1753951842804,-500.0,0.00020273,2]
[376370370,1753951842813,-460.0,0.00020273,2]
[376370372,1753951842823,-460.0,0.00020273,2]
[376370374,1753951842841,-310.45,0.00020273,2]
[376370376,1753951842859,-483.94,0.00020273,2]
[376370378,1753951842868,-460.0,0.00020273,2]
[376370380,1753951842878,-460.0,0.00020273,2]
[376370382,1753951842887,-460.0,0.00020273,2]
[376370384,1753951842898,-460.0,0.00020273,2]
[376370386,1753951842908,-460.0,0.0002033,2]
[376370388,1753951842918,-1112.40803198,0.00020347,2]
[376370390,1753951842927,-2857.25880471,0.00020383,3]
[376370392,1753951842936,-465.0948923,0.00020403,2]
[376370394,1753951842946,-460.0,0.00020403,2]
[376370396,1753951842955,-507.41,0.00020403,2]
[376370398,1753951842964,-168.0,0.00020521,3]
[376370400,1753951842974,-464.74,0.00020544,2]
[376370402,1753951842984,-501.87471833,0.00020544,2]
[376370404,1753951842993,-460.0,0.00020544,2]
[376370406,1753951843002,-460.0,0.00020544,2]